Cogmind - Beta 10.2 @@@ ROGUE MODE // 2021.12.06 @ 17:58:37 // Winter2019/RPGLIKE Player: FontPeg Result: Destroyed by G-47 Trooper with Particle Gun Performance ------------- Evolutions (2) 1000 Regions Visited (5) 1000 Robots Destroyed (20) 100 Value Destroyed (467) 467 Prototype IDs (2) 40 Alien Tech Used (0) 0 Bonus (-79) -79 TOTAL SCORE: 2528 Bonus ------- High Alert Combat Kills 11 Follower Combat Kills 132 Friendly Fire -222 Cogmind --------- Core Integrity 0/750 Matter 450/450 Energy 98/100 System Corruption 0% Temperature Cool (18) Movement Rolling (100) Location -8/Materials Parts ------- > --- POWER (1) -------- (None) > --- PROPULSION (2) --- Compact Wheel Compact Wheel > --- UTILITY (2) ------ Compact Matter Pod Signal Interpreter > --- WEAPON (2) ------- Heavy Missile Launcher Axe > --- INVENTORY (2) ---- Beam Cannon Datajack Peak State ------------ > --- POWER ------------ Light Nuclear Core > --- PROPULSION ------- Compact Wheel Compact Wheel > --- UTILITY ---------- Compact Matter Pod Signal Interpreter > --- WEAPON ----------- Heavy Missile Launcher Katana > --- INVENTORY -------- Beam Cannon Datajack [Rating: 16] Favorites ----------- Power Light Nuclear Core Engine Light Ion Engine Power Core Light Nuclear Core Propulsion Compact Wheel Wheel Compact Wheel Utility Signal Interpreter Device Heat Sink Storage Compact Matter Pod Processor Signal Interpreter Weapon Assault Rifle Energy Gun EM Pulse Gun Energy Cannon Beam Cannon Ballistic Gun Assault Rifle Launcher Rocket Launcher Impact Weapon Mace Slashing Weapon Katana Build | -11 -10 -10 -9 -9 -8 ------- Run | Scr Mat Min Mat Min Mat Slots Evolved 3 | 3 . . . . . Power . | . . . . . . Propulsion 1 | 1 . . . . . Utility 1 | 1 . . . . . Weapon 1 | 1 . . . . . Parts Attached 26 | 5 10 4 . 5 2 Power 3 | 1 . 2 . . . Engine 2 | 1 . 1 . . . Core 1 | . . 1 . . . Reactor . | . . . . . . Propulsion 5 | 2 . . . 3 . Treads . | . . . . . . Leg . | . . . . . . Wheel 5 | 2 . . . 3 . Hover . | . . . . . . Flight . | . . . . . . Utility 3 | . 2 1 . . . Device 1 | . 1 . . . . Storage 1 | . . 1 . . . Processor 1 | . 1 . . . . Hackware . | . . . . . . Protection . | . . . . . . Artifact . | . . . . . . Weapon 15 | 2 8 1 . 2 2 Energy Gun 5 | 2 3 . . . . Energy Cannon 3 | . 3 . . . . Ballistic Gun 2 | . 2 . . . . Ballistic Cannon . | . . . . . . Launcher 2 | . . 1 . 1 . Special Weapon . | . . . . . . Impact Weapon 1 | . . . . 1 . Slashing Weapon 2 | . . . . . 2 Piercing Weapon . | . . . . . . Special Melee Weapon . | . . . . . . Unidentified Prototypes . | . . . . . . Parts Lost 1 | . . . . . 1 Power 1 | . . . . . 1 Propulsion . | . . . . . . Utility . | . . . . . . Weapon . | . . . . . . Highest Loss Streak 1 | . . . . . 1 Average Slot Usage (%) 96 | . 81 99 100 98 94 Engine 3 | . 14 3 . . . Core 10 | . . 10 14 14 9 Wheel 27 | . 28 28 28 26 28 Device 2 | . 4 3 . . . Storage 10 | . . 10 14 14 14 Processor 13 | . 5 14 14 14 14 Energy Gun 1 | . 10 . . . . Energy Cannon 1 | . 8 . . . . Ballistic Gun 8 | . 9 14 14 . . Launcher 11 | . . 13 14 14 14 Impact Weapon 4 | . . . . 13 5 Slashing Weapon 1 | . . . . . 8 Naked Turns . | . . . . . . Heaviest Build 15 | 7 9 12 12 15 15 Greatest Support 32 | 32 32 32 32 32 32 Greatest Overweight (x) 4 | . . . . 4 . Average Overweight (x) . | . . . . . . Largest Inventory Capacity 2 | 2 2 2 2 2 2 Average Capacity 2 | 2 2 2 2 2 2 Most Carried 2 | 2 2 2 1 2 2 Average Carried 1 | 1 1 1 1 1 1 Final Capacity 2 | 2 2 2 2 2 2 Final Carried 2 | 2 2 1 1 2 2 Class Distribution -------------------- 88% | Mutant 11% | Hacker-Mutant Dominant Class ---------------- Mutant | -10/Materials Mutant | -10/Mines Mutant | -9/Materials Mutant | -9/Mines Hacker-Mutant | -8/Materials Resources | -11 -10 -10 -9 -9 -8 ----------- Run | Scr Mat Min Mat Min Mat Matter Collected 698 | 250 22 232 . 123 71 Remotely . | . . . . . . Salvage Created 275 | . 22 122 . . 131 Parts 33 | . 2 16 5 . 10 Haulers Intercepted 1 | . . . . . 1 Recyclers Shooed . | . . . . . . Parts Field Recycled . | . . . . . . Retrieved Matter . | . . . . . . Parts Self-Destructed . | . . . . . . Prevented . | . . . . . . Kills | -11 -10 -10 -9 -9 -8 ------- Run | Scr Mat Min Mat Min Mat Combat Hostiles Destroyed 16 | . . 9 1 . 6 Melee 1 | . . . . . 1 Guns 4 | . . 3 1 . . AOE 11 | . . 6 . . 5 Classes Destroyed 6 | . 1 3 . . 2 Worker 1 | . . . . . 1 Hauler 1 | . . . . . 1 Watcher 1 | . 1 . . . . Swarmer 9 | . . 6 . . 3 Grunt 3 | . . 1 . . 2 Sentry 4 | . . 2 1 . 1 Thug 1 | . . . . . 1 Best Kill Streak 5 | . 1 5 1 . 4 Combat Bots Only 5 | . . 5 1 . 3 Max Kills in Single Turn 4 | . 1 3 1 . 4 Gunslinging . | . . . . . . Exploded 3 | . . 3 . . 2 Melee 1 | . . . . . 1 Uniques/NPCs Destroyed . | . . . . . . Combat | -11 -10 -10 -9 -9 -8 -------- Run | Scr Mat Min Mat Min Mat Damage Taken 1328 | . 33 571 116 31 577 Core 1118 | . 25 488 94 25 486 Absorbed by Shields . | . . . . . . Redirected to Core 715 | . 25 278 81 18 313 Core Remaining (%) 50 | 100 . 21 . 31 . Volleys Fired 33 | . 3 20 6 . 4 Largest 2 | . 2 2 1 . 1 Hottest 100 | . 100 53 20 . 39 Shots Fired 45 | . 6 29 6 . 4 Gun 29 | . 3 20 6 . . Cannon 3 | . 3 . . . . Launcher 13 | . . 9 . . 4 Special . | . . . . . . Kinetic 26 | . . 20 6 . . Thermal 3 | . 3 . . . . Explosive 13 | . . 9 . . 4 Electromagnetic 3 | . 3 . . . . Robot Hit Streak 8 | . 1 8 2 . 3 Robot Miss Streak 3 | . 2 3 2 . . Penetration Max . | . . . . . . Secondary Targets . | . . . . . . Shots Hit Robots 27 | . 1 16 2 1 7 Core Hits 35 | . 1 15 2 . 17 Critical Hits . | . . . . . . Critical Kills . | . . . . . . Critical Parts Destroyed . | . . . . . . Melee Attacks 8 | . . . . 1 7 Impact 1 | . . . . 1 . Slashing 7 | . . . . . 7 Piercing . | . . . . . . Sneak Attacks . | . . . . . . Combat Hostiles . | . . . . . . Follow-up Attacks . | . . . . . . Damage Inflicted 2194 | . 36 761 44 28 1325 Guns 240 | . . 196 44 . . Cannons 36 | . 36 . . . . Explosions 1747 | . . 565 . . 1182 Melee 171 | . . . . 28 143 Ramming . | . . . . . . Kinetic 240 | . . 196 44 . . Thermal 36 | . 36 . . . . Explosive 1747 | . . 565 . . 1182 Electromagnetic . | . . . . . . Impact 28 | . . . . 28 . Slashing 143 | . . . . . 143 Piercing . | . . . . . . Highest Corruption . | . . . . . . Average Corruption . | . . . . . . Corruption Purged . | . . . . . . Overload Shots . | . . . . . . Overflow Damage 50 | . . 11 . . 39 Projectiles . | . . . . . . Explosions 50 | . . 11 . . 39 Melee . | . . . . . . Knockbacks . | . . . . . . Impact . | . . . . . . Kinetic . | . . . . . . Secondary . | . . . . . . Self-Inflicted Damage 299 | . . 195 . . 104 Shots 10 | . . 7 . . 3 Rammed . | . . . . . . Targets Rammed . | . . . . . . Kicked . | . . . . . . Crushed . | . . . . . . Highest Temperature 39 | . 39 . 1 . 4 Average Temperature 15 | . 24 . 1 . 2 Received Heat Transfer 396 | . 18 108 36 . 234 Siege Activations . | . . . . . . Robots Corrupted . | . . . . . . Combat Hostiles . | . . . . . . Parts Fried . | . . . . . . Impact Corruptions . | . . . . . . Robots Melted . | . . . . . . Combat Hostiles . | . . . . . . Parts Melted 2 | . . . . . 2 Heat Transferred 74 | . 74 . . . . Parts Sabotaged . | . . . . . . Parts Stolen . | . . . . . . Parts Stripped . | . . . . . . Power Chain Reactions . | . . . . . . Missiles Intercepted . | . . . . . . Alert | -11 -10 -10 -9 -9 -8 ------- Run | Scr Mat Min Mat Min Mat Peak Influence 429 | . 43 161 45 17 429 Initial 17 | . . 16 . 17 . Average 57 | . 15 52 32 10 205 Maximum Alert Level 2 | . . . . . 2 Low Security (%) 94 | 100 100 100 100 100 64 Level 1 3 | . . . . . 22 Level 2 1 | . . . . . 12 Level 3 . | . . . . . . Level 4 . | . . . . . . Level 5 . | . . . . . . High Security . | . . . . . . Max Security . | . . . . . . Squads Dispatched 4 | . . . 1 . 3 Investigation 1 | . . . . . 1 Extermination . | . . . . . . Reinforcement 3 | . . . 1 . 2 Assault . | . . . . . . Garrison . | . . . . . . Intercept . | . . . . . . Construction Impeded . | . . . . . . Haulers Reinforced . | . . . . . . Stealth | -11 -10 -10 -9 -9 -8 --------- Run | Scr Mat Min Mat Min Mat Distress Signals 4 | . 1 . . . 3 Communications Jammed . | . . . . . . Distress Signals . | . . . . . . Times Spotted 41 | . 5 9 2 4 21 Peak Tracking Total 9 | . 3 5 1 3 9 Tactical Retreats 1 | . . . . . 1 Traps | -11 -10 -10 -9 -9 -8 ------- Run | Scr Mat Min Mat Min Mat Traps Triggered 2 | . 1 . . 1 . Indirectly . | . . . . . . Trap Hack Attempts . | . . . . . . Triggered . | . . . . . . Disarmed . | . . . . . . Reprogrammed . | . . . . . . Reused . | . . . . . . Traps Extracted . | . . . . . . Installed . | . . . . . . Triggered . | . . . . . . Machines | -11 -10 -10 -9 -9 -8 ---------- Run | Scr Mat Min Mat Min Mat Machines Disabled 7 | . . 3 . . 4 Max in Single Turn 2 | . . 2 . . 1 Machines Sabotaged . | . . . . . . Garrisons Compromised . | . . . . . . Overloaded Fab Kills . | . . . . . . Fab Network Shutdowns . | . . . . . . Hacking | -11 -10 -10 -9 -9 -8 --------- Run | Scr Mat Min Mat Min Mat Machines Accessed 5 | . 1 . . 2 2 Terminals 4 | . 1 . . 1 2 Fabricators . | . . . . . . Repair Stations . | . . . . . . Recycling Units . | . . . . . . Scanalyzers . | . . . . . . Garrison Access . | . . . . . . Total Hacks 19 | . 4 . . 6 9 Successful 9 | . 1 . . 3 5 Failed 10 | . 3 . . 3 4 Catastrophic . | . . . . . . Database Lockouts . | . . . . . . Manual 6 | . 1 . . 5 . Terminals 18 | . 4 . . 5 9 Fabricators . | . . . . . . Repair Stations . | . . . . . . Recycling Units . | . . . . . . Scanalyzers . | . . . . . . Garrison Access . | . . . . . . Terminal Hacks 9 | . 1 . . 3 5 Prototype ID Bank 1 | . . . . . 1 Open Door 1 | . . . . 1 . Branch Access Points 1 | . 1 . . . . Alert Level 1 | . . . . . 1 Unreport Threat 2 | . . . . 2 . Locate Traps 1 | . . . . . 1 Recall Investigation 1 | . . . . . 1 Recall Reinforcements 1 | . . . . . 1 Fabricator Hacks . | . . . . . . Repair Station Hacks . | . . . . . . Recycling Unit Hacks . | . . . . . . Scanalyzer . | . . . . . . Garrison Access Hacks . | . . . . . . Unauthorized Hacks . | . . . . . . Terminals . | . . . . . . Fabricators . | . . . . . . Repair Stations . | . . . . . . Recycling Units . | . . . . . . Scanalyzers . | . . . . . . Garrison Access . | . . . . . . Data Cores Recovered . | . . . . . . Used . | . . . . . . Hacking Detections 4 | . 1 . . 1 2 Full Trace Events . | . . . . . . Feedback Events . | . . . . . . Feedback Blocked . | . . . . . . Robot Schematics Acquired . | . . . . . . Robots Built . | . . . . . . Matter . | . . . . . . Time . | . . . . . . Total Robot Build Rating . | . . . . . . Part Schematics Acquired . | . . . . . . Parts Built . | . . . . . . Matter . | . . . . . . Time . | . . . . . . Total Part Build Rating . | . . . . . . Parts Repaired . | . . . . . . Time . | . . . . . . Parts Recycled . | . . . . . . Recycled Matter . | . . . . . . Retrieved Matter . | . . . . . . Retrieved Components . | . . . . . . Parts Scanalyzed . | . . . . . . Part Schematics Acquired . | . . . . . . Parts Damaged . | . . . . . . Bothacking | -11 -10 -10 -9 -9 -8 ------------ Run | Scr Mat Min Mat Min Mat Used RIF Installer . | . . . . . . Robots Hacked . | . . . . . . Non-combat . | . . . . . . Combat . | . . . . . . Robot Hacks Applied . | . . . . . . Relay Couplers Released . | . . . . . . Robots Rewired . | . . . . . . Allies Hacked . | . . . . . . Hacks Repelled . | . . . . . . Allies | -11 -10 -10 -9 -9 -8 -------- Run | Scr Mat Min Mat Min Mat Total Allies 4 | . . . . 4 . Largest Group 4 | . . . . 4 4 Highest-Rated Group 71 | . . . . 71 71 Highest-Rated Ally 31 | . . . . 31 31 Total Orders . | . . . . . . Ally Attacks 38 | . . . . 2 36 Total Damage 410 | . . . . . 410 Kills 6 | . . . . . 6 Allies Corrupted . | . . . . . . Allies Melted . | . . . . . . Intel | -11 -10 -10 -9 -9 -8 ------- Run | Scr Mat Min Mat Min Mat Robot Analysis Total . | . . . . . . Derelict Logs Recovered 2 | . . 1 . 1 . Drone Launches . | . . . . . . Drone Recoveries . | . . . . . . Exploration | -11 -10 -10 -9 -9 -8 ------------- Run | Scr Mat Min Mat Min Mat Turns Passed 2147 | 47 261 848 117 557 317 Spaces Moved 1821 | 41 224 667 99 512 278 Core 20 | 7 . . . 13 . Treads . | . . . . . . Legs . | . . . . . . Wheels 1801 | 34 224 667 99 499 278 Hover . | . . . . . . Flight . | . . . . . . Fastest Speed 50 | 50 100 100 100 100 100 Average Speed 100 | 91 100 100 100 103 100 Slowest Speed 250 | 100 100 100 100 250 100 Overloaded Moves . | . . . . . . Propulsion Burnouts . | . . . . . . Robots Hopped . | . . . . . . Cave-ins Triggered . | . . . . . . Exploration Rate (%) 46 | 4 38 94 11 92 37 Regions Visited 5 Branch Regions 2 Pre-discovered Areas 2 | . . 1 . 1 . Known Exits Taken 4 | . 1 1 1 1 . Unknown Exits Taken 1 | 1 . . . . . Scrap Searched 3 | . . 1 . 2 . Spaces Dug 16 | . . . . . 16 Terrain Destroyed 119 | . . 67 . . 52 Melee . | . . . . . . Projectile . | . . . . . . AOE 119 | . . 67 . . 52 Terrain Rammed . | . . . . . . Walls Destroyed . | . . . . . . Machines Disabled . | . . . . . . Actions | -11 -10 -10 -9 -9 -8 --------- Run | Scr Mat Min Mat Min Mat Total 2070 | 48 253 819 111 537 302 Wait 146 | . 8 122 . 16 . Move 1816 | 40 223 666 98 511 278 Hop . | . . . . . . Pick Up 9 | 3 3 1 . 1 1 Fast Attach 18 | 4 7 2 . 4 1 Attach 3 | 1 1 1 . . . Detach . | . . . . . . Swap 5 | . 2 1 . 1 1 Drop 15 | . 6 4 . 2 3 Fire 33 | . 3 20 6 . 4 Melee 8 | . . . . 1 7 Ram . | . . . . . . Kick . | . . . . . . Crush . | . . . . . . Escape Stasis . | . . . . . . Rewire . | . . . . . . Trap . | . . . . . . Miscellaneous 17 | . . 2 7 1 7 Route ------- -11/Scrapyard -10/Materials -10/Mines (discovered 2 exits: *Mat x2) -9/Materials -9/Mines (discovered 2 exits: *Mat x2) -8/Materials (discovered 1 exit: Fac) History --------- Turn | Location | Event 1 | -11/Scrapyard | Upgraded with Propulsion slot (x1) 1 | -11/Scrapyard | Upgraded with Utility slot (x1) 1 | -11/Scrapyard | Upgraded with Weapon slot (x1) 2 | -11/Scrapyard | Met Revision 17 14 | -11/Scrapyard | Discovered new exit (range 16) 48 | -11/Scrapyard | Entered Materials 168 | -10/Materials | Discovered new exit (range 16) 206 | -10/Materials | Identified exit to Mines 304 | -10/Materials | Build established: Mutant 309 | -10/Materials | Entered Mines 364 | -10/Mines | Received a Rocket Launcher from a helpful Derelict 441 | -10/Mines | Discovered new exit (range 14) 447 | -10/Mines | Learned location of Zion (-6) 467 | -10/Mines | Identified exit to Materials 490 | -10/Mines | Core integrity fell below 50% 501 | -10/Mines | Joined a pair of Derelicts in attacking an 0b10 outpost 868 | -10/Mines | Discovered exit to Materials (range 9) 1068 | -10/Mines | Reached level 2 1157 | -10/Mines | Entered Materials 1158 | -9/Materials | Core integrity fell below 50% 1159 | -9/Materials | Reached level 3 1185 | -9/Materials | Core integrity fell below 20% 1254 | -9/Materials | Discovered new exit (range 16) 1272 | -9/Materials | Identified exit to Mines 1274 | -9/Materials | Entered Mines 1329 | -9/Mines | Met a Derelict bent on vengeance 1375 | -9/Mines | Met a Derelict who couldn't figure out how to use a Trap Extractor 1522 | -9/Mines | Learned location of 1 exit from Materials 1589 | -9/Mines | Assisted by bots powering up and referring to "LRC-V3" 1624 | -9/Mines | Discovered new exit (range 7) 1630 | -9/Mines | Identified exit to Materials 1649 | -9/Mines | Discovered exit to Materials (range 12) 1698 | -9/Mines | Escorted by a lone wolf Derelict 1718 | -9/Mines | Learned location of Storage (-9) 1831 | -9/Mines | Entered Materials 1831 | -8/Materials | Accompanied by 4 allies 1832 | -8/Materials | Identified exit to Factory 1832 | -8/Materials | Core integrity fell below 50% 1833 | -8/Materials | Reached level 4 2037 | -8/Materials | Reached level 5 2041 | -8/Materials | Core integrity fell below 20% 2148 | -8/Materials | Destroyed by G-47 Trooper with Particle Gun Last Messages --------------- 02134_ U-05 Engineer lays Concrete. 02134_ K-01 Serf collects debris. 02135_ U-05 Engineer lays Concrete. 02136_ K-01 Serf collects debris. 02137_ 57-0MI(g) destroyed. 02138_ K-01 Serf collects debris. 02138_ U-05 Engineer lays Concrete. 02140_ K-01 Serf collects debris. 02141_ U-05 Engineer lays Concrete. 02141_ K-01 Serf collects debris. 02142_ U-05 Engineer lays Concrete. 02143_ K-01 Serf collects debris. 02143_ U-05 Engineer lays Concrete. 02145_ Beam Rifle melted. 02145_ Heat Sink melted. 02145_ Y-45 Defender destroyed. 02146_ K-01 Serf collects debris. 02147_ U-05 Engineer lays Concrete. 02147_ U-05 Engineer builds a Wall. 02148_ K-01 Serf collects debris. Map ----- +----------------------------------------------------+ | ?????????????????????????????????????????????????? | | ?????????????????????????????????????????????????? | | ?????????????????????????????????????????????????? | | ?????????????????????????????????????????????????? | | ?????????????????????????????????????????????????? | | ???????????????????# ??????????????????????????? | | ? ?????????????????# ??????????????????????????? | | ? ?????????????????# ??????????????????????????? | | ? ?????????????????# #############?????????????? | | ? ?????????????????# * ??????????????? | | ? ?#######?????????# ???????????????? | | ? ?# ?????????# !]! k ????????????????? | | ? ?? "?????????# !] % ############?????? | | # #? "?????????# !! ! #?????? | | # #?? """???????# g #?????# | | # #?? ???????# % #?????# | | # #??? ""????????# u #?????# | | # #??? ""????????# g #?????# | | # #???? "?????????#%= ###########???????# | | # #???? ?????????#*%a % #################### | | # ######+#########?#[ u ## | | + [%= #?# k % ## | | #######!* k%! ### % ## | | #?????# !o %! kk ###########+### # | | #???####+##### #????????? ?# # | | #???# # gg @ %= #????????? ?# ## | | #???# "S # #####+##????????""" # ## | | ????# """ = # #???????????????""" # | | ????# "" #"" === #?????????????? """ # | | ????# #"T == #?????????????? # | | ????# """"" #"" == #?????????????###########+# | | ????# """"" !# +?????????????????????# | | ????# """"" # #?????????????????????# | | ????# # #######?????????????????????# | | ????########## #???????????????????????????# "" | | ????????????? ???????????????????????????# S"" | | ???????????? !???????????????????????????# "" | | ??????????? ???????????????????????????##### | | ??????????? ???????????????????????????????? | | ???????????## ????????????????????????????????? | | ??????????????#+#????????????????????????????????? | | ?????????????????????????????????????????????????? | | ?????????????????????????????????????????????????? | | ?????????????????????????????????????????????????? | | ?????????????????????????????????????????????????? | | ?????????????????????????????????????????????????? | | ?????????????????????????????????????????????????? | | ?????????????????????????????????????????????????? | | ?????????????????????????????????????????????????? | | ?????????????????????????????????????????????????? | +----------------------------------------------------+ Best States ------------- Heat Dissipation 35 Energy Generation 14 Energy Capacity 160 Matter Stores 450 Matter Capacity 450 Sight Range 16 Terrain Scan Density 10 Resistance: EX 20 Evasion (%) 50 Offensive Hacking 30 Item Schematics ----------------- None Robot Schematics ------------------ None Fabricated ------------ Nothing Alien Tech Used ----------------- None Achievements -------------- None Challenges ------------ None RPGLIKE | -11 -10 -10 -9 -9 -8 --------- Run | Scr Mat Min Mat Min Mat Levels Raised 4 | . . 1 1 . 2 XP Earned 10394 | 3000 65 1575 1650 535 3569 XP Spent 7455 | 2850 . . . . 4605 Upgrades 18 | 7 . . . . 11 Propulsion Slot 1 | 1 . . . . . Utility Slot 1 | 1 . . . . . Weapon Slot 1 | 1 . . . . . Core Integrity 3 | . . . . . 3 Inventory Capacity 2 | 2 . . . . . Hack Attack % 6 | 2 . . . . 4 EX Resistance % 4 | . . . . . 4 Protomatter Created 160 | . . 30 55 . 75 Integrity Restored 366 | . . 39 165 18 144 Core 366 | . . 39 165 18 144 Protomatter Decayed 11 | . . 4 . 7 . Game ------ Seed SupersonicSuperchargedSteel Manual? 0 Play Time 00:20:47 Cumulative 93.1 hours Start 2021.12.06 @ 17:11:20 End 2021.12.06 @ 17:58:37 Sessions 1 Manual Loads 0 Difficulty Rogue Special Mode Winter2019/RPGLIKE Game No. 130 Rogue 130 Adventurer 0 Explorer 0 Win Type - Total 1 Types 1/0/0/0/0/0/0/0/0 Lore% 43 Gallery% 55 Achievement% 44 Wizard Run 0 Options --------- ASCII 0 Keyboard 0 Movement Mouse Keybinds 0 Fullscreen 2 Font 18/X11 Map View 76x50 Tactical HUD 1 Map Filters NONE Filters NONE Steam 1 RUN: a4c52560-48fd-4256-b3a4-307f004dceea